Cogmind - Beta 13 @@@ ROGUE MODE // 2024.05.22 @ 13:51:32 Player: Joshi Result: Destroyed by Y-54 Guardian with Gatling Laser Performance ------------- Evolutions (0) 0 Regions Visited (3) 600 Robots Destroyed (37) 185 Value Destroyed (940) 940 Prototype IDs (3) 60 Alien Tech Used (0) 0 Bonus (62) 62 TOTAL SCORE: 1847 Bonus ------- Follower Combat Kills 62 Cogmind --------- Core Integrity 0/250 Matter 228/300 Energy 278/290 System Corruption 0% Temperature Cool (84) Movement Rolling (120) Ox2 Location -7/Recycling Parts ------- > --- POWER (1) -------- Reinforced Deuterium Engine > --- PROPULSION (2) --- Light Treads Armored Wheel > --- UTILITY (2) ------ Armored Scrap Engine > --- WEAPON (2) ------- Shock Bomb Launcher Thermal Pulse Construct/G > --- INVENTORY (5) ---- Huge Storage Unit Advanced Weight Redist. System Makeshift System Shield Advanced Assault Cannon Mining Claw Peak State ------------ > --- POWER ------------ Micro Nuclear Core > --- PROPULSION ------- Light Treads Armored Wheel > --- UTILITY ---------- Armored Scrap Engine > --- WEAPON ----------- Advanced Assault Cannon Heavy Missile Launcher > --- INVENTORY -------- Large Storage Unit Advanced Weight Redist. System Makeshift System Shield Shock Bomb Launcher Mining Claw [Rating: 34] Favorites ----------- Power Ion Engine Engine Ion Engine Power Core Micro Nuclear Core Propulsion Light Treads Treads Light Treads Leg Aluminum Leg Wheel Armored Wheel Utility Large Storage Unit Device Armored Scrap Engine Storage Large Storage Unit Processor Visual Processing Unit Protection Medium Armor Plating Weapon Shotgun Energy Gun EM Pulse Gun Energy Cannon Light EM Pulse Cannon Ballistic Gun Shotgun Ballistic Cannon Advanced Assault Cannon Launcher Heavy Missile Launcher Special Weapon Enhanced Flamer Slashing Weapon Mining Claw Build | -11 -10 -10 -7 ------- Run | Yrd Mat Sub Rec Slots Evolved . | . . . . Power . | . . . . Propulsion . | . . . . Utility . | . . . . Weapon . | . . . . Parts Attached 58 | 6 17 21 14 Power 13 | 1 1 7 4 Engine 10 | 1 1 6 2 Core 3 | . . 1 2 Reactor . | . . . . Propulsion 10 | 2 3 5 . Treads 4 | . 1 3 . Leg 2 | 2 . . . Wheel 4 | . 2 2 . Hover . | . . . . Flight . | . . . . Utility 10 | 1 5 3 1 Device 2 | . 1 . 1 Storage 3 | 1 2 . . Processor 1 | . 1 . . Hackware . | . . . . Protection 4 | . 1 3 . Artifact . | . . . . Weapon 25 | 2 8 6 9 Energy Gun 4 | 1 2 . 1 Energy Cannon 3 | . 3 . . Ballistic Gun 8 | 1 2 5 . Ballistic Cannon 1 | . . . 1 Launcher 6 | . 1 . 5 Special Weapon 1 | . . 1 . Impact Weapon . | . . . . Slashing Weapon 2 | . . . 2 Piercing Weapon . | . . . . Special Melee Weapon . | . . . . Unidentified Prototypes . | . . . . Parts Lost 4 | . 1 2 1 Power . | . . . . Propulsion . | . . . . Utility 1 | . . 1 . Weapon 3 | . 1 1 1 Highest Loss Streak 2 | . 1 2 1 To Critical Strikes . | . . . . Average Slot Usage (%) 89 | . 98 96 75 Engine 10 | . 14 10 7 Core 1 | . . 1 3 Treads 13 | . 13 14 14 Wheel 13 | . 13 14 14 Device 5 | . 3 . 14 Storage 8 | . 14 12 . Protection 7 | . 5 13 . Energy Gun 1 | . 3 . 1 Ballistic Gun 16 | . 19 27 2 Ballistic Cannon 2 | . . . 7 Launcher 3 | . . . 8 Slashing Weapon 1 | . . . 3 Naked Turns . | . . . . Heaviest Build 38 | 12 38 38 29 Greatest Support 20 | 20 20 12 12 Greatest Overweight (x) 3 | . 3 3 2 Average Overweight (x) 1 | . 1 2 . Largest Inventory Capacity 15 | 8 15 15 5 Average Capacity 10 | 7 14 13 5 Most Carried 15 | 6 15 15 5 Average Carried 9 | 5 13 10 4 Final Capacity 15 | 8 15 5 5 Final Carried 14 | 6 14 5 5 Scrap Engine Consumption 27 | . . . 27 Constructs Created 1 | . . . 1 Class Distribution -------------------- 78% | Mutant 21% | Commander-Mutant Dominant Class ---------------- Mutant | -10/Materials Mutant | -10/Subcaves Commander-Mutant | -7/Recycling Resources | -11 -10 -10 -7 ----------- Run | Yrd Mat Sub Rec Matter Collected 1480 | 196 435 703 146 Remotely . | . . . . Salvage Created 1148 | . 439 433 276 Parts 81 | . 32 32 17 Haulers Intercepted 2 | . 2 . . Recyclers Shooed 2 | . 1 . 1 Parts Field Recycled . | . . . . Retrieved Matter . | . . . . Parts Self-Destructed 12 | . . 12 . Prevented . | . . . . Kills | -11 -10 -10 -7 ------- Run | Yrd Mat Sub Rec Combat Hostiles Destroyed 29 | . 12 14 3 Guns 26 | . 10 14 2 Cannons 1 | . . . 1 AOE 2 | . 2 . . Classes Destroyed 8 | . 5 3 . Builder 4 | . 1 . 3 Hauler 2 | . 2 . . Turret 1 | . . 1 . Watcher 1 | . 1 . . Swarmer 11 | . 8 3 . Grunt 5 | . 4 1 . Sentry 4 | . . 1 3 Subdweller 9 | . . 9 . Best Kill Streak 4 | . 3 4 4 Combat Bots Only 3 | . 3 3 1 Max Kills in Single Turn 2 | . 2 1 2 Gunslinging . | . . . . Exploded 2 | . 2 . . Melee . | . . . . Uniques/NPCs Destroyed . | . . . . Combat | -11 -10 -10 -7 -------- Run | Yrd Mat Sub Rec Hostile Shots Fired 254 | . 42 128 84 Missed 84 | . 12 41 31 Damage Taken 1691 | . 312 1025 354 Core 250 | . 53 142 55 Absorbed by Shields 142 | . . . 142 Regen/Repaired (Parts) 87 | . . . 87 Core Remaining (%) 100 | 100 . . . Volleys Fired 96 | . 46 40 10 Largest 2 | . 2 2 2 Hottest 112 | . 112 48 79 Shots Fired 175 | . 85 76 14 Gun 154 | . 74 76 4 Cannon 11 | . 8 . 3 Launcher 10 | . 3 . 7 Special . | . . . . Kinetic 130 | . 51 76 3 Thermal 4 | . 3 . 1 Explosive 6 | . 3 . 3 Electromagnetic 35 | . 28 . 7 Robot Hit Streak 23 | . 9 23 7 Robot Miss Streak 8 | . 8 5 1 Penetration Max . | . . . . Secondary Targets 4 | . 1 3 . Max Gunslinging Chain 1 | . 1 1 . Shots Hit Robots 123 | . 44 62 17 Core Hits 71 | . 22 37 12 Critical Kills 1 | . . 1 . Critical Parts Destroyed . | . . . . Critical Strikes 2 | . . 1 1 Destroy 1 | . . 1 . Corrupt 1 | . . . 1 Melee Attacks 17 | . . . 17 Impact . | . . . . Slashing 17 | . . . 17 Piercing . | . . . . Sneak Attacks . | . . . . Combat Hostiles . | . . . . Follow-up Attacks . | . . . . Damage Inflicted 2633 | . 819 1024 790 Guns 1664 | . 596 1024 44 Cannons 213 | . 131 . 82 Explosions 374 | . 92 . 282 Melee 382 | . . . 382 Ramming . | . . . . Kinetic 1550 | . 444 1024 82 Thermal 121 | . 103 . 18 Explosive 158 | . . . 158 Electromagnetic 422 | . 272 . 150 Impact . | . . . . Slashing 382 | . . . 382 Piercing . | . . . . Highest Corruption . | . . . . Average Corruption . | . . . . Corruption Purged . | . . . . Corruption Blocked . | . . . . Overload Shots . | . . . . Overflow Damage 181 | . . . 181 Projectiles . | . . . . Explosions . | . . . . Melee 181 | . . . 181 Knockbacks . | . . . . Impact . | . . . . Kinetic . | . . . . Secondary . | . . . . Self-Inflicted Damage 31 | . 31 . . Shots 1 | . 1 . . Rammed . | . . . . Targets Rammed . | . . . . Kicked . | . . . . Crushed . | . . . . Highest Temperature 153 | . 153 4 108 Average Temperature 37 | . 44 4 34 Received Heat Transfer 510 | . 48 411 51 Siege Activations . | . . . . Robots Corrupted . | . . . . Combat Hostiles . | . . . . Parts Fried 3 | . 2 . 1 Impact Corruptions . | . . . . Robots Melted . | . . . . Combat Hostiles . | . . . . Parts Melted . | . . . . Heat Transferred 125 | . 125 . . Parts Sabotaged . | . . . . Parts Stolen . | . . . . Parts Stripped . | . . . . Power Chain Reactions 2 | . 2 . . Alert | -11 -10 -10 -7 ------- Run | Yrd Mat Sub Rec Peak Influence 444 | . 237 . 444 Initial 439 | . . . 439 Average 142 | . 114 . 208 Maximum Alert Level 2 | . 1 . 2 Low Security (%) 72 | 100 88 . 52 Level 1 15 | . 11 . 23 Level 2 11 | . . . 23 Level 3 . | . . . . Level 4 . | . . . . Level 5 . | . . . . High Security . | . . . . Max Security . | . . . . Squads Dispatched 1 | . 1 . . Investigation . | . . . . Extermination . | . . . . Reinforcement 1 | . 1 . . Assault . | . . . . Garrison . | . . . . Intercept . | . . . . Searches Triggered . | . . . . Construction Impeded . | . . . . Haulers Reinforced . | . . . . Active Scanning Responses . | . . . . Cargo Convoy Interrupts . | . . . . Stealth | -11 -10 -10 -7 --------- Run | Yrd Mat Sub Rec Distress Signals . | . . . . Communications Jammed . | . . . . Distress Signals . | . . . . Times Spotted 111 | . 23 79 9 Peak Tracking Total 6 | . 4 6 2 Tactical Retreats 11 | . 2 7 2 Traps | -11 -10 -10 -7 ------- Run | Yrd Mat Sub Rec Traps Triggered 1 | . 1 . . Indirectly . | . . . . Trap Hack Attempts . | . . . . Triggered . | . . . . Disarmed . | . . . . Reprogrammed . | . . . . Reused 1 | . . . 1 Traps Extracted . | . . . . Installed 1 | . . . 1 Triggered 4 | . . 3 1 Most Traps Carried 2 | . . 2 2 Machines | -11 -10 -10 -7 ---------- Run | Yrd Mat Sub Rec Machines Disabled 1 | . 1 . . Max in Single Turn 1 | . 1 . . Machines Repaired . | . . . . Machines Dismantled . | . . . . Machines Sabotaged . | . . . . Overloaded Fab Kills . | . . . . Hacking | -11 -10 -10 -7 --------- Run | Yrd Mat Sub Rec Machines Accessed 12 | . 5 . 7 Terminals 8 | . 4 . 4 Fabricators . | . . . . Repair Stations . | . . . . Recycling Units 4 | . 1 . 3 Scanalyzers . | . . . . Garrison Access . | . . . . Total Hacks 24 | . 11 . 13 Successful 15 | . 6 . 9 Failed 9 | . 5 . 4 Catastrophic . | . . . . Database Lockouts . | . . . . Manual . | . . . . Terminals 16 | . 7 . 9 Fabricators . | . . . . Repair Stations . | . . . . Recycling Units 8 | . 4 . 4 Scanalyzers . | . . . . Garrison Access . | . . . . Terminal Hacks 9 | . 4 . 5 Record 3 | . . . 3 Robot Analysis 3 | . 1 . 2 Prototype ID Bank 1 | . 1 . . Emergency Access Points 1 | . 1 . . Locate Traps 1 | . 1 . . Fabricator Hacks . | . . . . Repair Station Hacks . | . . . . Recycling Unit Hacks 6 | . 2 . 4 Process 1 | . 1 . . Report Inventory 4 | . 1 . 3 Retrieve Components 1 | . . . 1 Scanalyzer . | . . . . Garrison Access Hacks . | . . . . Unauthorized Hacks . | . . . . Terminals . | . . . . Fabricators . | . . . . Repair Stations . | . . . . Recycling Units . | . . . . Scanalyzers . | . . . . Garrison Access . | . . . . Data Cores Recovered . | . . . . Used . | . . . . Hacking Detections 5 | . 2 . 3 Full Trace Events 1 | . . . 1 Feedback Events . | . . . . Feedback Blocked . | . . . . Robot Schematics Acquired . | . . . . Robots Built . | . . . . Authchips . | . . . . Time . | . . . . Total Robot Build Rating . | . . . . Part Schematics Acquired . | . . . . Parts Built . | . . . . Authchips . | . . . . Time . | . . . . Total Part Build Rating . | . . . . Parts Repaired . | . . . . Time . | . . . . Parts Recycled . | . . . . Recycled Matter 5 | . 5 . . Retrieved Matter . | . . . . Retrieved Components 2 | . . . 2 Parts Scanalyzed . | . . . . Part Schematics Acquired . | . . . . Parts Damaged . | . . . . Bothacking | -11 -10 -10 -7 ------------ Run | Yrd Mat Sub Rec Used RIF Installer . | . . . . Robots Hacked . | . . . . Non-combat . | . . . . Combat . | . . . . Robot Hacks Applied . | . . . . Relay Couplers Released . | . . . . Fabnet Peak Effective % . | . . . . Robots Rewired 15 | . . . 15 Allies Hacked . | . . . . Hacks Repelled . | . . . . Allies | -11 -10 -10 -7 -------- Run | Yrd Mat Sub Rec Total Allies 15 | . . . 15 Largest Group 14 | . . . 14 Highest-Rated Group 248 | . . . 248 Highest-Rated Ally 40 | . . . 40 Total Orders 4 | . . . 4 FOLLOW 2 | . . . 2 AID 2 | . . . 2 Ally Attacks 19 | . . . 19 Total Damage 434 | . . . 434 Kills 3 | . . . 3 Allies Corrupted . | . . . . Allies Melted . | . . . . Intel | -11 -10 -10 -7 ------- Run | Yrd Mat Sub Rec Robot Analysis Total 3 | . 1 . 2 Derelict Logs Recovered 1 | . . 1 . Drone Launches . | . . . . Drone Recoveries . | . . . . Exploration | -11 -10 -10 -7 ------------- Run | Yrd Mat Sub Rec Turns Passed 5436 | 539 1168 2050 1679 Spaces Moved 2838 | 79 634 1367 758 Core 5 | 5 . . . Treads . | . . . . Legs 112 | 74 38 . . Wheels 2721 | . 596 1367 758 Hover . | . . . . Flight . | . . . . Fastest Speed 50 | 50 100 120 90 Average Speed 121 | 115 124 130 103 Slowest Speed 135 | 120 135 135 120 Overloaded Moves . | . . . . Propulsion Burnouts . | . . . . Robots Hopped . | . . . . Cave-ins Triggered . | . . . . Exploration Rate (%) 60 | 8 94 50 91 Regions Visited 3 Branch Regions 2 Pre-discovered Areas . | . . . . Known Exits Taken . | . . . . Unknown Exits Taken 3 | 1 1 1 . Scrap Searched 11 | . . 11 . Spaces Dug 21 | . 19 . 2 Terrain Destroyed 73 | . 24 . 49 Melee 2 | . . . 2 Projectile . | . . . . AOE 71 | . 24 . 47 Terrain Rammed . | . . . . Walls Destroyed . | . . . . Machines Disabled . | . . . . Actions | -11 -10 -10 -7 --------- Run | Yrd Mat Sub Rec Total 4627 | 523 930 1563 1611 Wait 1322 | 433 197 100 592 Move 2835 | 78 633 1366 758 Hop . | . . . . Pick Up 47 | 6 19 11 11 Fast Attach 24 | 6 7 4 7 Attach 7 | . 2 4 1 Detach 1 | . . . 1 Swap 27 | . 8 13 6 Drop 60 | . 18 24 18 Fire 96 | . 46 40 10 Melee 17 | . . . 17 Ram . | . . . . Kick . | . . . . Crush . | . . . . Escape Stasis . | . . . . Rewire 189 | . . . 189 Trap 1 | . . . 1 Miscellaneous 1 | . . 1 . Route ------- -11/Scrapyard -10/Materials (discovered 5 exits: [*Mat x3] / [*Min] / [*Sub]) -10/Subcaves -7/Recycling (discovered 1 exit: [*Fac]) History --------- Turn | Location | Event 2 | -11/Scrapyard | Met Revision 17 2 | -11/Scrapyard | Discovered new exit (range 16) 540 | -11/Scrapyard | Entered Materials 541 | -10/Materials | Build established: Mutant 896 | -10/Materials | Discovered new exit (range 16) 1113 | -10/Materials | Discovered new exit (range 9) 1213 | -10/Materials | Discovered new exit (range 17) 1335 | -10/Materials | Discovered new exit (range 13) 1663 | -10/Materials | Discovered new exit (range 5) 1708 | -10/Materials | Entered Subcaves 2223 | -10/Subcaves | Core integrity fell below 50% 2333 | -10/Subcaves | Discovered new exit (range 10) 2614 | -10/Subcaves | Ambushed by Subdwellers from Twisted Machinery 2975 | -10/Subcaves | Shifting Twisted Machinery released Sub. Beam Cannon 3055 | -10/Subcaves | Learned Materials emergency access door positions 3130 | -10/Subcaves | A swath of the cavern ceiling suddenly collapsed 3378 | -10/Subcaves | A swath of the cavern ceiling suddenly collapsed 3758 | -10/Subcaves | Entered Recycling 3759 | -7/Recycling | Found Scrap Engine 3862 | -7/Recycling | Discovered new exit (range 8) 4193 | -7/Recycling | Core integrity fell below 20% 4576 | -7/Recycling | Build established: Commander-Mutant 5057 | -7/Recycling | Lost 4 allies 5383 | -7/Recycling | Lost 3 allies 5437 | -7/Recycling | Destroyed by Y-54 Guardian with Gatling Laser Last Messages --------------- 05271_ Sneak attack on A-02 Transporter. 05271_ Destroyed Weight Redist. System. 05274_ Sneak attack on A-02 Transporter. 05277_ Destroyed Lgt. Treads. 05277_ A-02 Transporter destroyed. 05278_ R-06 Scavenger collects Med. Storage Unit. 05283_ R-06 Scavenger collects Imp. Heat Sink. 05325_ Y-54 Guardian springs to life. 05328_ The unstable cave ceiling collapses. 05343_ Serf 4a destroyed. 05366_ Arm. Scrap Engine consumes Med. Treads. 05370_ Arm. Scrap Engine consumes Gauss Rifle. 05381_ Acquired 8 matter. 05423_ Angel 4b destroyed. 05430_ U-05 Engineer destroyed. 05430_ Hvy. Missile Launcher destroyed. 05431_ Arm. Scrap Engine constructs Thermal Pulse Construct/G. 05433_ Imp. Heat Sink fried. 05433_ Y-54 Guardian destroyed. 05433_ R-06 Scavenger collects Corrupted Lgt. Ion Engine. Map ----- +----------------------------------------------------+ | | | | | | | | | | | | | | | | | | | | | | | | | | | | | | | ?????#########?#####????######??#?????????? | | ?????#"""# #?# #???? # #?????????? | | ???###"Y"# ### ##### ###???????? | | ???# % = =%! #???????? | | #### % = [ < #???????? | | =%* #???????? | | #### #!! ############ = * ###???????? | | ???# #! !#?????????## *% #???????????? | | #### ############### ?????????????? | | # # """ """ # #??????????????? | | # # """"""""" # @ #??????????????? | | # + """"" " ### #??????????????? | | # # #?# #??????????????? | | # + #?# iu#??????????????? | | + ######"T"######?# i #??????????????? | | # ##########??????# #????##????????? | | # # #??????####r #??## ####?????? | | # ############## ## #? #?????? | | + + # #? #?????? | | ###+##/#### #Y # #?????? | | #?# # ## # # #?????? | | ###?# #### / + #?????? | | ##???# #??# # # #?????? | | ?????# ! #??# # # #?????? | | ?????#! #??# # #? #????? | | ?????# #??# # #? ##????? | | ?????# ! #??########### #??#######?????? | | ?????# ! #????????????# #????##????????? | | ?????#! #???########?# #?### ####?????? | | ?????# #???# # # #?????? | | ?????# #???# # # #?????? | | ?????# #???# """ + + #?????? | | ?????# % #???# """"" # # #?????? | | ?????######????? """"" # # #?????? | | ?????????????????"""""?# + #?????? | +----------------------------------------------------+ Best States ------------- Heat Dissipation 25 Energy Generation 16 Energy Capacity 290 Matter Stores 300 Matter Capacity 300 Sight Range 18 Terrain Scan Density 10 ECM Strength 1 Armor Coverage 800 Evasion (%) 55 Recoil Reduction 1 Item Schematics ----------------- None Robot Schematics ------------------ None Fabricated ------------ Nothing Alien Tech Used ----------------- None Achievements -------------- None Challenges ------------ None Game ------ Seed SensorGravityWarhead Manual? 0 Play Time 00:59:59 Cumulative 12.6 hours Start 2024.05.22 @ 12:28:43 End 2024.05.22 @ 13:51:32 Sessions 1 Manual Loads 0 Difficulty Rogue Special Mode None Game No. 9 Rogue 9 Adventurer 0 Explorer 0 Win Type - Total 0 Types 0/0/0/0/0/0/0/0/0 Lore% 17 Gallery% 16 Achievement% 15 Wizard Run 0 Options --------- Layout 0 ASCII 0 Keyboard 0 Movement Mouse Keybinds 0 Fullscreen 1 Font 18/SmallcapsGlow Map View 76x50 Zoom Use 0% Tactical HUD 1 Map Filters NONE Filters NONE Steam 1 RUN: f048daf1-b8cf-4234-8dac-12e329a09169